fUSD/lending_fUSD_20260307
["ID","MTS","AMOUNT","RATE_DAILY","PERIOD"]
[407904438,1772904638463,-500.0,0.0001778,2]
[407904439,1772904638473,-500.0,0.0001778,2]
[407904440,1772904638482,-500.0,0.0001778,2]
[407904441,1772904638491,-500.0,0.0001778,2]
[407904442,1772904638500,-515.18028553,0.000179,2]
[407904446,1772904640497,-49.46971447,0.000179,2]
[407904447,1772904640511,-241.21367125,0.00018012,2]
[407904448,1772904640521,-500.0,0.00018054,2]
[407904449,1772904640532,-1000.0,0.00018082,7]
[407904450,1772904640542,-2500.0,0.00018082,7]
[407904451,1772904640553,-2800.0,0.00018082,7]
[407904452,1772904640563,-3148.73,0.00018116,2]
[407904453,1772904640573,-175.96945149,0.00018328,2]
[407904454,1772904640583,-316.0,0.00018437,2]
[407904455,1772904640593,-1000.0,0.00018451,2]
[407904456,1772904640602,-241.21367125,0.00018484,2]
[407904457,1772904640612,-500.0,0.00018533,2]
[407904458,1772904640622,-500.0,0.00018533,2]
[407904459,1772904640631,-500.0,0.00018533,2]
[407904460,1772904640640,-517.03877667,0.00018533,2]
[407904461,1772904640650,-500.0,0.00018533,2]
[407904462,1772904640660,-500.0,0.00018533,2]
[407904463,1772904640670,-500.0,0.00018533,2]
[407904464,1772904640680,-500.0,0.00018533,2]
[407904465,1772904640690,-500.0,0.00018533,2]
[407904466,1772904640700,-500.0,0.00018533,2]
[407904467,1772904640710,-500.0,0.00018533,2]
[407904468,1772904640719,-500.0,0.00018533,2]
[407904469,1772904640729,-500.0,0.00018533,2]
[407904470,1772904640738,-578.20924308,0.00018613,2]
[407904471,1772904640748,-174.61919141,0.00018613,2]
[407904472,1772904640757,-693.3919763,0.00018613,2]
[407904473,1772904640767,-500.0,0.00018613,2]
[407904474,1772904640777,-500.0,0.00018613,2]
[407904475,1772904640786,-500.0,0.00018613,2]
[407904476,1772904640796,-500.0,0.00018613,2]
[407904477,1772904640806,-500.0,0.00018613,2]
[407904478,1772904640816,-500.0,0.00018613,2]
[407904479,1772904640825,-500.0,0.00018613,2]
[407904480,1772904640835,-500.0,0.00018613,2]
[407904481,1772904640845,-500.0,0.00018613,2]
[407904482,1772904640854,-500.0,0.00018613,2]
[407904483,1772904640864,-500.0,0.00018613,2]
[407904484,1772904640874,-200.0,0.00018613,2]
[407904485,1772904640888,-404.69161307,0.00018613,2]
[407904486,1772904640898,-693.3919763,0.00018613,2]
[407904487,1772904640908,-250.0,0.00018613,2]
[407904488,1772904640919,-500.0,0.00018613,2]
[407904489,1772904640929,-150.0,0.00018615,2]
[407904490,1772904640940,-500.0,0.00018615,2]
[407904491,1772904640950,-500.0,0.00018615,2]
[407904492,1772904640960,-500.0,0.00018615,2]
[407904493,1772904640970,-500.0,0.00018615,2]
[407904494,1772904640981,-150.0,0.00018615,2]
[407904495,1772904640991,-150.0,0.00018615,2]
[407904496,1772904641002,-150.0,0.00018615,2]
[407904497,1772904641012,-150.0,0.00018615,2]
[407904498,1772904641022,-150.0,0.00018615,2]
[407904499,1772904641031,-150.0,0.00018615,2]
[407904500,1772904641042,-150.0,0.00018615,2]
[407904501,1772904641055,-150.0,0.00018615,2]
[407904502,1772904641071,-150.0,0.00018615,2]
[407904503,1772904641082,-719.04747942,0.00018668,2]
[407904504,1772904641092,-150.0,0.0001867,2]
[407904505,1772904641104,-500.0,0.0001867,2]
[407904506,1772904641115,-500.0,0.0001867,2]
[407904507,1772904641125,-500.0,0.0001867,2]
[407904508,1772904641137,-500.0,0.0001867,2]
[407904509,1772904641148,-150.0,0.0001867,2]
[407904510,1772904641158,-150.0,0.0001867,2]
[407904511,1772904641168,-150.0,0.0001867,2]
[407904512,1772904641179,-150.0,0.0001867,2]
[407904513,1772904641189,-150.0,0.0001867,2]
[407904514,1772904641199,-150.0,0.0001867,2]
[407904515,1772904641209,-745.65223616,0.00018723,2]
[407904516,1772904641219,-500.0,0.00018725,2]
[407904517,1772904641230,-500.0,0.00018725,2]
[407904518,1772904641240,-175.29398025,0.00018725,2]
[407904519,1772904641251,-500.0,0.00018725,2]
[407904520,1772904641261,-200.0,0.00018725,2]
[407904521,1772904641275,-200.0,0.00018725,2]
[407904522,1772904641285,-200.0,0.00018725,2]
[407904523,1772904641295,-200.0,0.00018725,2]
[407904524,1772904641305,-200.0,0.00018725,2]
[407904525,1772904641315,-773.2413689,0.00018778,2]
[407904526,1772904641326,-500.0,0.00018779,2]
[407904527,1772904641336,-500.0,0.00018779,2]
[407904528,1772904641346,-500.0,0.00018779,2]
[407904529,1772904641356,-164.34884721,0.00018811,2]
[407904530,1772904641367,-801.85129955,0.00018833,2]
[407904531,1772904641377,-500.0,0.00018834,2]
[407904532,1772904641387,-500.0,0.00018834,2]
[407904533,1772904641396,-831.51979763,0.00018888,2]
[407904534,1772904641406,-500.0,0.00018889,2]
[407904535,1772904641416,-500.0,0.00018889,2]
[407904536,1772904641426,-3148.73,0.00018904,2]
[407904537,1772904641436,-862.28603014,0.00018943,2]
[407904538,1772904641446,-500.0,0.00018943,2]
[407904539,1772904641456,-500.0,0.00018943,2]
[407904540,1772904641466,-581.24,0.00018943,2]
[407904541,1772904641480,-500.0,0.00018944,2]
[407904542,1772904641489,-500.0,0.00018944,2]
[407904543,1772904641501,-241.21367125,0.00018956,2]
[407904544,1772904641516,-894.19061326,0.00018998,2]
[407904545,1772904641529,-500.0,0.00018999,2]
[407904546,1772904641545,-500.0,0.00018999,2]
[407904547,1772904641557,-544.59,0.00019,7]
[407904549,1772904641567,-1000.0,0.00019,6]
[407904550,1772904641577,-1630.91524289,0.00019005,2]
[407904551,1772904641587,-927.27566595,0.00019053,2]
[407904552,1772904641597,-500.0,0.00019053,2]
[407904553,1772904641607,-500.0,0.00019053,2]
[407904554,1772904641618,-33994.01549466,0.00019061,2]
[407904555,1772904641627,-2000.0,0.000191,6]
[407904556,1772904641637,-961.58486559,0.00019108,2]
[407904557,1772904641647,-500.0,0.00019108,2]
[407904558,1772904641657,-500.0,0.00019108,2]
[407904559,1772904641667,-350.0,0.00019116,2]
[407904560,1772904641677,-33994.01549457,0.00019154,2]
[407904561,1772904641689,-181.08010149,0.00019161,2]
[407904562,1772904641698,-719.04747942,0.00019161,2]
[407904563,1772904641708,-500.0,0.00019161,2]
[407904564,1772904641718,-997.16350561,0.00019163,2]
[407904565,1772904641728,-500.0,0.00019163,2]
[407904566,1772904641737,-500.0,0.00019163,2]
[407904567,1772904641747,-350.0,0.00019175,2]
[407904568,1772904641757,-172.78723296,0.00019178,7]
[407904569,1772904641767,-1000.0,0.00019178,7]
[407904570,1772904641777,-2500.0,0.00019178,7]
[407904571,1772904641787,-2800.0,0.00019178,7]
[407904572,1772904641797,-254.26,0.0001919,2]
[407904573,1772904641807,-3100.0,0.000192,7]
[407904574,1772904641817,-500.0,0.00019218,2]
[407904575,1772904641828,-264.04850966,0.00019218,2]
[407904576,1772904641838,-33994.01549457,0.00019247,2]
[407904577,1772904641848,-500.0,0.00019273,2]
[407904578,1772904641861,-4100.0,0.000193,7]
[407904579,1772904641870,-150.0,0.0001932,2]
[407904580,1772904641880,-500.0,0.00019327,2]
[407904581,1772904641890,-254.26,0.00019331,2]
[407904582,1772904641900,-2904.53,0.00019339,2]
[407904583,1772904641910,-150.99,0.00019339,2]
[407904584,1772904641919,-19079.31,0.00019339,2]
[407904585,1772904641930,-8036.09,0.00019339,2]
[407904586,1772904641941,-33994.01549457,0.00019341,2]
[407904587,1772904641951,-500.0,0.00019382,2]
[407904588,1772904641960,-151.0,0.00019394,2]
[407904589,1772904641970,-678.0,0.00019396,2]
[407904590,1772904641980,-150.0,0.00019396,2]
[407904591,1772904641990,-150.0,0.00019396,2]
[407904592,1772904642001,-150.0,0.00019396,2]
[407904593,1772904642011,-150.0,0.00019396,2]
[407904594,1772904642023,-208.0,0.00019396,2]
[407904595,1772904642033,-657.0,0.00019397,2]
[407904596,1772904642042,-150.0,0.00019397,2]
[407904597,1772904642052,-150.0,0.00019397,2]
[407904598,1772904642073,-150.0,0.00019397,2]
[407904599,1772904642084,-150.0,0.00019397,2]
[407904600,1772904642094,-170.0,0.00019397,2]
[407904601,1772904642106,-568.0,0.000194,2]
[407904602,1772904642116,-150.0,0.000194,2]
[407904603,1772904642126,-150.0,0.000194,2]
[407904604,1772904642136,-150.0,0.000194,2]
[407904605,1772904642145,-156.0,0.000194,2]
[407904606,1772904642155,-5200.0,0.000194,7]
[407904607,1772904642165,-241.21367125,0.00019428,2]
[407904608,1772904642174,-254.26,0.00019431,2]
[407904609,1772904642184,-33994.01549457,0.00019434,2]
[407904610,1772904642194,-500.0,0.00019437,2]
[407904611,1772904642203,-1000.0,0.00019441,2]
[407904612,1772904642213,-1000.0,0.00019442,2]
[407904613,1772904642222,-169.16,0.00019459,2]
[407904614,1772904642231,-350.0,0.00019468,2]
[407904615,1772904642241,-500.0,0.00019492,2]
[407904616,1772904642250,-1000.0,0.000195,7]
[407904617,1772904642259,-33994.01549457,0.00019527,2]
[407904618,1772904642269,-350.0,0.0001953,2]
[407904619,1772904642278,-500.0,0.00019547,2]
[407904620,1772904642288,-3474.32335693,0.000196,2]
[407904621,1772904642298,-1000.0,0.000196,7]
[407904622,1772904642307,-2012.0,0.000196,2]
[407904623,1772904642316,-254.26,0.0001961,2]
[407904624,1772904642326,-33994.01549457,0.0001962,2]
[407904625,1772904642335,-168.0,0.00019621,2]
[407904626,1772904642345,-350.0,0.00019676,2]
[407904627,1772904642355,-2804.0,0.0001968,2]
[407904628,1772904642365,-2844.0,0.0001968,2]
[407904629,1772904642374,-487.0,0.00019689,2]
[407904630,1772904642383,-529.31,0.00019689,2]
[407904631,1772904642393,-2000.0,0.000197,2]
[407904632,1772904642403,-1000.0,0.000197,7]
[407904633,1772904642412,-254.26,0.00019703,2]
[407904634,1772904642422,-3391.85,0.00019705,2]
[407904635,1772904642431,-3391.85,0.00019705,2]
[407904636,1772904642444,-3391.85,0.00019705,2]
[407904637,1772904642454,-3391.85,0.00019705,2]
[407904638,1772904642463,-3391.85,0.00019705,2]
[407904639,1772904642472,-3391.85,0.00019705,2]
[407904640,1772904642482,-3391.85,0.00019705,2]
[407904641,1772904642491,-5634.0,0.00019705,2]
[407904642,1772904642500,-187.78006525,0.00019709,2]
[407904643,1772904642510,-827.50680267,0.00019709,2]
[407904644,1772904642520,-500.0,0.00019709,2]
[407904645,1772904642529,-1279.0,0.0001971,2]
[407904646,1772904642538,-922.0,0.0001971,2]
[407904647,1772904642548,-1212.0,0.0001971,2]
[407904648,1772904642558,-5991.0,0.0001971,2]
[407904649,1772904642567,-1341.0,0.0001971,2]
[407904650,1772904642576,-3503.0,0.0001971,2]
[407904651,1772904642586,-1433.63,0.00019711,2]
[407904652,1772904642595,-3611.97,0.00019711,2]
[407904653,1772904642604,-33994.01549457,0.00019714,2]
[407904654,1772904642614,-169.16,0.00019716,2]
[407904655,1772904642624,-177.28481416,0.00019753,2]
[407904656,1772904642633,-5000.0,0.00019764,2]
[407904657,1772904642643,-2000.0,0.000198,2]
[407904658,1772904642653,-2000.0,0.000198,2]
[407904659,1772904642663,-1551.20637,0.000198,2]
[407904660,1772904642672,-1000.0,0.000198,7]
[407904661,1772904642682,-33994.01549457,0.00019807,2]
[407904662,1772904642691,-500.0,0.00019835,2]
[407904663,1772904642701,-500.0,0.00019835,2]
[407904664,1772904642711,-500.0,0.00019835,2]
[407904665,1772904642720,-200.0,0.0001984,2]
[407904666,1772904642730,-1551.20636,0.0001985,2]
[407904667,1772904642740,-156.1,0.00019861,2]
[407904668,1772904642749,-25000.0,0.00019891,3]
[407904669,1772904642759,-3133.136,0.00019894,2]
[407904670,1772904642768,-169.131,0.00019894,2]
[407904672,1772904642778,-200.0,0.00019895,2]
[407904673,1772904642787,-151.0,0.00019897,2]
[407904674,1772904642797,-1000.0,0.00019899,2]
[407904675,1772904642806,-502.34173101,0.00019899,2]
[407904676,1772904642816,-10000.0,0.000199,2]
[407904677,1772904642825,-10204.9278,0.000199,2]
[407904679,1772904642835,-5800.0,0.000199,2]
[407904682,1772904642844,-25000.0,0.000199,3]
[407904687,1772904643256,-241.21367125,0.000199,2]
[407904689,1772904643266,-1551.20637,0.000199,2]
[407904691,1772904643275,-9783.35772538,0.000199,3]
[407904692,1772904643285,-1555.0,0.000199,7]
[407904694,1772904643294,-33994.01549457,0.000199,2]
[407904696,1772904643304,-1744.43292007,0.000199,2]
[407904697,1772904643313,-222.52962526,0.000199,3]
[407904698,1772904643322,-67088.71003475,0.000199,2]
[407904699,1772904643331,-8745.07025799,0.000199,2]
[407904700,1772904643341,-46999.96014233,0.000199,2]
[407904701,1772904643351,-3769.0,0.000199,2]
[407904702,1772904643360,-1106.41192988,0.00019908,2]
[407904703,1772904643370,-1000.0,0.00019917,2]
[407904704,1772904643380,-500.0,0.00019944,2]
[407904705,1772904643389,-500.0,0.00019944,2]
[407904706,1772904643398,-500.0,0.00019949,2]
[407904707,1772904643408,-500.0,0.00019949,2]
[407904708,1772904643417,-274.9282927,0.00019949,2]
[407904709,1772904643427,-1551.20637,0.0001995,2]
[407904710,1772904643436,-400.0,0.0001997,2]
[407904711,1772904643445,-400.0,0.0001997,2]
[407904712,1772904643454,-541.01514806,0.0001997,2]
[407904713,1772904643464,-150.0,0.00019973,2]
[407904714,1772904643473,-500.0,0.0001998,7]
[407904715,1772904643482,-151.45333064,0.0001998,2]
[407904716,1772904643491,-4712.0,0.00019988,2]
[407904717,1772904643500,-744.58207499,0.00019989,2]
[407904718,1772904643509,-169.16,0.00019989,2]
[407904719,1772904643519,-150.0,0.0001999,2]
[407904720,1772904643528,-744.58207499,0.0001999,2]
[407904721,1772904643537,-744.58207499,0.0001999,2]
[407904722,1772904643547,-500.0,0.00019991,2]
[407904723,1772904643555,-500.0,0.00019991,2]
[407904724,1772904643564,-464.05,0.00019991,2]
[407904725,1772904643574,-151.0,0.00019996,2]
[407904726,1772904643583,-3560.8358849,0.00019996,2]
[407904727,1772904643593,-89403.0007776,0.00019996,2]
[407904728,1772904643602,-3456.5211905,0.00019996,2]
[407904729,1772904643611,-151.0,0.00019997,2]
[407904730,1772904643620,-1295.19930183,0.00019998,5]
[407904731,1772904643629,-5642.38060504,0.00019999,2]
[407904732,1772904643638,-300.0,0.00019999,2]
[407904733,1772904643648,-300.0,0.00019999,2]
[407904734,1772904643658,-666.0,0.00019999,2]
[407904735,1772904643667,-16858.1418865,0.00019999,2]
[407904736,1772904643677,-77730.794039,0.00019999,2]
[407904737,1772904643686,-16335.2645465,0.00019999,2]
[407904738,1772904643695,-340113.4629089,0.00019999,2]
[407904739,1772904643705,-422.5802129,0.00019999,2]
[407904740,1772904643714,-500.0,0.00019999,2]
[407904741,1772904643723,-500.0,0.00019999,2]
[407904742,1772904643732,-500.0,0.00019999,2]
[407904743,1772904643741,-500.0,0.00019999,2]
[407904744,1772904643750,-500.0,0.00019999,2]
[407904745,1772904643759,-500.0,0.00019999,2]
[407904746,1772904643768,-500.0,0.00019999,2]
[407904747,1772904643777,-500.0,0.00019999,2]
[407904748,1772904643785,-500.0,0.00019999,2]
[407904749,1772904643794,-500.0,0.00019999,2]
[407904750,1772904643803,-500.0,0.00019999,2]
[407904751,1772904643812,-500.0,0.00019999,2]
[407904752,1772904643821,-500.0,0.00019999,2]
[407904753,1772904643830,-500.0,0.00019999,2]
[407904754,1772904643839,-500.0,0.00019999,2]
[407904755,1772904643848,-500.0,0.00019999,2]
[407904756,1772904643858,-500.0,0.00019999,2]
[407904757,1772904643867,-500.0,0.00019999,2]
[407904758,1772904643875,-513.528378,0.00019999,2]
[407904759,1772904643885,-910.5546492,0.00019999,2]
[407904760,1772904643894,-500.0,0.00019999,2]
[407904761,1772904643903,-500.0,0.00019999,2]
[407904762,1772904643912,-500.0,0.00019999,2]
[407904763,1772904643921,-500.0,0.00019999,2]
[407904764,1772904643930,-500.0,0.00019999,2]
[407904765,1772904643940,-500.0,0.00019999,2]
[407904766,1772904643949,-500.0,0.00019999,2]
[407904767,1772904643958,-500.0,0.00019999,2]
[407904768,1772904643967,-500.0,0.00019999,2]
[407904769,1772904643976,-500.0,0.00019999,2]
[407904770,1772904643985,-500.0,0.00019999,2]
[407904771,1772904643994,-500.0,0.00019999,2]
[407904772,1772904644003,-500.0,0.00019999,2]
[407904773,1772904644012,-382.75,0.00019999,2]
[407904774,1772904644021,-500.0,0.00019999,2]
[407904775,1772904644030,-500.0,0.00019999,2]
[407904776,1772904644039,-500.0,0.00019999,2]
[407904777,1772904644047,-500.0,0.00019999,2]
[407904778,1772904644059,-500.0,0.00019999,2]
[407904779,1772904644069,-500.0,0.00019999,2]
[407904780,1772904644078,-151.0,0.00019999,2]
[407904781,1772904644087,-381.33854944,0.00019999,2]
[407904782,1772904644096,-500.0,0.00019999,2]
[407904783,1772904644105,-500.0,0.00019999,2]
[407904784,1772904644115,-500.0,0.00019999,2]
[407904785,1772904644124,-500.0,0.00019999,2]
[407904786,1772904644135,-201.56469632,0.00019999,2]
[407904787,1772904644144,-500.0,0.00019999,2]
[407904788,1772904644153,-279.9073084,0.00019999,2]
[407904789,1772904644162,-500.0,0.00019999,2]
[407904790,1772904644171,-500.0,0.00019999,2]
[407904791,1772904644181,-500.0,0.00019999,2]
[407904792,1772904644189,-500.0,0.00019999,2]
[407904793,1772904644199,-500.0,0.00019999,2]
[407904794,1772904644207,-151.0,0.00019999,2]
[407904795,1772904644216,-453.388839,0.00019999,2]
[407904796,1772904644225,-453.388839,0.00019999,2]
[407904797,1772904644234,-453.388839,0.00019999,2]
[407904798,1772904644243,-453.388839,0.00019999,2]
[407904799,1772904644252,-500.0,0.00019999,2]
[407904800,1772904644261,-500.0,0.00019999,2]
[407904801,1772904644270,-500.0,0.00019999,2]
[407904802,1772904644279,-441.28,0.00019999,2]
[407904803,1772904644287,-327.4,0.00019999,2]
[407904804,1772904644296,-151.0,0.00019999,2]
[407904805,1772904644305,-151.0,0.00019999,2]
[407904806,1772904644315,-151.0,0.00019999,2]
[407904807,1772904644324,-218.328244,0.00019999,2]
[407904808,1772904644333,-151.0,0.00019999,2]
[407904809,1772904644342,-151.0,0.00019999,2]
[407904810,1772904644351,-151.337108,0.00019999,2]
[407904811,1772904644360,-151.0,0.00019999,2]
[407904812,1772904644369,-151.0,0.00019999,2]
[407904813,1772904644378,-151.0,0.00019999,2]
[407904814,1772904644387,-151.0,0.00019999,2]
[407904815,1772904644401,-287.08423227,0.00019999,2]
[407904816,1772904644411,-605.11383753,0.00019999,2]
[407904817,1772904644421,-500.0,0.00019999,2]
[407904818,1772904644435,-510.6918404,0.00019999,2]
[407904819,1772904644445,-500.0,0.00019999,2]
[407904820,1772904644454,-500.0,0.00019999,2]
[407904821,1772904644464,-500.0,0.00019999,2]
[407904822,1772904644473,-464.90580016,0.00019999,2]
[407904823,1772904644483,-500.0,0.00019999,2]
[407904824,1772904644493,-262382.48950013,0.0002,2]
[407904825,1772904644717,-229.20357414,0.0002,2]
[407904826,1772904644729,-2522.48116495,0.0002,2]
[407904827,1772904644746,-832798.92492964,0.0002,2]
[407904839,1772904645879,-5000.0,0.00019762,2]
[407904840,1772904645889,-518.79649442,0.00019899,2]
[407904841,1772904645899,-150.0,0.00019899,2]
[407904842,1772904645908,-17264.56736708,0.000199,2]
[407904843,1772904645917,-203655.4902468,0.0002,2]
[407904846,1772904664681,5000.51,0.00031,120]
[407904856,1772904851155,10000.0,0.00031,120]
[407904857,1772904873225,9958.0,0.00031,120]
[407904879,1772905609306,7090.10112867,0.00031,120]
[407904880,1772905609330,14204.63270752,0.00031,120]
[407904881,1772905619120,-168.02,0.00014904,2]
[407904882,1772905619144,-28.57305392,0.00015,2]
[407904910,1772905831980,-221.42694608,0.00015,2]
[407904911,1772905831990,-1000.0,0.00015045,2]
[407904912,1772905831999,-1143.18365907,0.00015045,2]
[407904913,1772905832084,-56.81634093,0.00015045,2]
[407904914,1772905832094,-74880.1209,0.00015046,2]
[407904915,1772905832104,-4975.8234,0.00015046,2]
[407904916,1772905832114,-503.88399188,0.0001506,2]
[407904917,1772905832124,-300.0,0.00015136,2]
[407904918,1772905832134,-151.0,0.00015137,2]
[407904919,1772905832144,-151.0,0.00015137,2]
[407904920,1772905832154,-151.0,0.00015137,2]
[407904921,1772905832163,-151.0,0.00015137,2]
[407904922,1772905832176,-151.0,0.00015137,2]
[407904923,1772905832185,-151.0,0.00015137,2]
[407904925,1772905832195,-151.0,0.00015137,2]
[407904927,1772905832204,-151.0,0.00015137,2]
[407904929,1772905832214,-151.0,0.00015137,2]
[407904931,1772905832224,-261.58795042,0.00015137,2]
[407904932,1772905832234,-151.0,0.00015137,2]
[407904934,1772905832244,-169.27143825,0.00015137,2]
[407904936,1772905832254,-300.0,0.00015145,2]
[407904938,1772905832264,-105579.9967,0.00015146,2]
[407904940,1772905832274,-300.0,0.0001516,2]
[407904942,1772905832283,-1304.6,0.00015471,2]
[407904944,1772905832293,-3286.89,0.00015471,2]
[407904946,1772905832303,-503.88399183,0.00015598,2]
[407904948,1772905832313,-500.0,0.00015699,2]
[407904950,1772905832323,-500.0,0.00015699,2]
[407904952,1772905832333,-500.0,0.00015699,2]
[407904954,1772905832343,-500.0,0.00015699,2]
[407904956,1772905832353,-500.0,0.00015699,2]
[407904957,1772905832363,-327.4,0.00015699,2]
[407904959,1772905832373,-503.88399183,0.00016136,2]
[407904960,1772905832383,-510.0,0.00016266,2]
[407904961,1772905832392,-302.35737128,0.00016395,2]
[407904962,1772905832402,-2500.0,0.000165,2]
[407904963,1772905832412,-2500.0,0.000165,2]
[407904964,1772905832422,-2500.0,0.000165,2]
[407904965,1772905832431,-2500.0,0.000165,2]
[407904966,1772905832441,-2641.38815727,0.000165,2]
[407904967,1772905832451,-796.0,0.00016549,2]
[407904968,1772905832465,-503.88399183,0.00016673,2]
[407904969,1772905832475,-503.88399183,0.00017211,2]
[407904970,1772905832485,-175.0,0.00017462,2]
[407904971,1772905832495,-503.88399183,0.00017749,2]
[407904972,1772905832507,-199.8,0.00018,4]
[407904973,1772905832517,-500.0,0.00018,2]
[407904974,1772905832526,-2800.0,0.00018082,7]
[407904975,1772905832538,-2500.0,0.00018082,7]
[407904976,1772905832548,-1200.0,0.00018082,7]
[407904977,1772905832557,-500.0,0.00018167,2]
[407904978,1772905832566,-503.88399183,0.00018287,2]
[407904979,1772905832576,-161.0,0.000184,2]
[407904980,1772905832586,-1482.67,0.0001848,2]
[407904981,1772905832596,-18768.69,0.00018508,2]
[407904982,1772905832605,-164.86,0.00018728,2]
[407904983,1772905832614,-2000.0,0.00018757,2]
[407904984,1772905832624,-500.0,0.00018757,2]
[407904985,1772905832634,-3923.57,0.00018778,2]
[407904986,1772905832644,-372.76,0.00018872,2]
[407904987,1772905832654,-25420.5147,0.0001899,2]
[407904988,1772905832664,-500.0,0.00018994,2]
[407904989,1772905832675,-1084.91728027,0.00018999,2]
[407904990,1772905832685,-500.0,0.00018999,2]
[407904991,1772905832694,-578.20924308,0.00018999,2]
[407904992,1772905832704,-693.3919763,0.00018999,2]
[407904993,1772905832713,-174.61919141,0.00018999,2]
[407904994,1772905832723,-200.0,0.00018999,2]
[407904995,1772905832733,-693.3919763,0.00018999,2]
[407904996,1772905832743,-500.0,0.00018999,2]
[407904997,1772905832753,-500.0,0.00018999,2]
[407904998,1772905832764,-500.0,0.00018999,2]
[407904999,1772905832774,-500.0,0.00018999,2]
[407905000,1772905832784,-500.0,0.00018999,2]
[407905001,1772905832794,-500.0,0.00018999,2]
[407905002,1772905832804,-500.0,0.00018999,2]
[407905003,1772905832813,-500.0,0.00018999,2]
[407905004,1772905832823,-500.0,0.00018999,2]
[407905005,1772905832833,-421.95478954,0.00018999,2]
[407905006,1772905832845,-78.04521046,0.00018999,2]
[407905007,1772905832855,-500.0,0.00018999,2]
[407905008,1772905832865,-544.59,0.00019,7]
[407905009,1772905832876,-500.0,0.00019031,2]
[407905010,1772905832886,-350.0,0.00019033,2]
[407905011,1772905832895,-2804.0,0.0001904,2]
[407905012,1772905832905,-719.04747942,0.00019054,2]
[407905013,1772905832915,-500.0,0.0001906,2]
[407905014,1772905832925,-500.0,0.0001906,2]
[407905015,1772905832934,-500.0,0.0001906,2]
[407905016,1772905832944,-2333.63856964,0.0001909,2]
[407905017,1772905832956,-349.05701941,0.0001909,2]
[407905018,1772905832970,-716.751795,0.0001909,2]
[407905020,1772905838065,-1932.35753115,0.00018082,7]
[407905021,1772905838077,-867.64246885,0.00018082,7]
[407905022,1772905838087,-89.77587461,0.00018824,2]
[407905023,1772905838099,-414.10811722,0.00018824,2]
[407905024,1772905838108,-845.89188278,0.0001909,2]
[407905025,1772905838119,-956.485885,0.0001909,2]
[407905026,1772905838131,-252.64484817,0.0001909,2]
[407905027,1772905838140,-201.52273151,0.000191,6]
[407905028,1772905838267,-355.615,0.000191,6]
[407905241,1772905840201,-242.86226849,0.000191,6]
[407905243,1772905840212,-745.65223616,0.00019109,2]
[407905245,1772905840221,-1000.0,0.00019133,2]
[407905247,1772905840230,-773.2413689,0.00019164,2]
[407905249,1772905840240,-2500.0,0.00019178,7]
[407905251,1772905840249,-1200.0,0.00019178,7]
[407905253,1772905840258,-2800.0,0.00019178,7]
[407905255,1772905840267,-20229.87,0.00019178,2]
[407905257,1772905840276,-166.67,0.00019198,2]
[407905259,1772905840286,-1700.0,0.000192,7]
[407905261,1772905840295,-801.85129955,0.00019219,2]
[407905263,1772905840305,-168.0,0.00019236,2]
[407905265,1772905840316,-350.0,0.00019237,2]